bitfinex/quotes_SOLUSD_20250402
["timestamp","ask_amount","ask_price","bid_price","bid_amount"]
[1743579821847,0.03,124.34,124.33,6.92]
[1743579822039,0.03,124.34,124.32,0.14216157]
[1743579835759,0.03,124.34,124.31,6.92]
[1743579836367,0.03,124.34,124.28,0.34732314]
[1743579836368,16.13895443,124.33,124.28,0.34732314]
[1743579836667,16.13895443,124.33,124.28,7.24732314]
[1743579836959,16.13895443,124.31,124.28,0.063]
[1743579837170,8.045,124.3,124.28,0.063]
[1743579839968,8.045,124.3,124.28,0.34732314]
[1743579841969,28.1541,124.32,124.28,0.34732314]
[1743579843361,44.29305443,124.32,124.28,0.34732314]
[1743579843567,16.13895443,124.3,124.28,0.063]
[1743579844378,8.0456,124.29,124.28,0.063]
[1743579846060,24.18455443,124.29,124.27,231.52]
[1743579846361,44.29875443,124.29,124.25,0.20516157]
[1743579846760,28.1598,124.29,124.25,0.20516157]
[1743579847564,28.1598,124.29,124.25,0.063]
[1743579847767,28.1598,124.29,124.25,0.20516157]
[1743579848177,0.03,124.3,124.25,0.20516157]
[1743579848356,16.16895443,124.3,124.25,0.20516157]
[1743579848974,0.03,124.3,124.25,0.20516157]
[1743579849280,0.03,124.3,124.25,0.34732314]
[1743579851674,8.075,124.3,124.25,0.34732314]
[1743579853775,0.03,124.3,124.25,0.34732314]
[1743579863688,0.03,124.3,124.25,38.996972]
[1743579864184,0.03,124.3,124.27,0.14216157]
[1743579864370,0.03,124.3,124.29,0.14216157]
[1743579873304,0.03,124.3,124.27,0.14216157]
[1743579873305,16.16895443,124.3,124.27,0.14216157]
[1743579873490,16.16895443,124.3,124.25,0.063]
[1743579873491,16.13895443,124.28,124.25,0.20516157]
[1743579874073,8.0469,124.27,124.25,0.20516157]
[1743579874479,24.18585443,124.27,124.25,0.063]
[1743579874882,16.13895443,124.26,124.25,0.063]
[1743579875284,16.13895443,124.26,124.22,0.063]
[1743579875490,16.13895443,124.24,124.22,0.063]
[1743579875779,16.13895443,124.25,124.22,0.063]
[1743579875970,8.0495,124.23,124.22,0.063]
[1743579883803,11.39825421,124.27,124.22,20.063]
[1743579883995,0.03,124.3,124.23,27.20432314]
[1743579883996,8.0456,124.29,124.23,27.20432314]
[1743579885499,8.075,124.3,124.23,27.20432314]
[1743579886308,8.075,124.3,124.23,258.90432314]
[1743579887408,8.075,124.3,124.23,266.95332314]
[1743579888686,16.13895443,124.29,124.23,238.90432314]
[1743579890511,28.1621,124.28,124.23,238.90432314]
[1743579893507,16.13895443,124.27,124.23,231.90516157]
[1743579894705,36.13895443,124.25,124.23,0.063]
[1743579895506,8.0489,124.24,124.23,0.063]
[1743579903091,21.6663,124.26,124.23,0.063]
[1743579903296,8.0482,124.25,124.23,0.063]
[1743579903508,24.18715443,124.25,124.23,0.063]
[1743579904817,28.0489,124.24,124.23,0.063]
[1743579905291,8.0489,124.24,124.23,0.063]
[1743579907496,8.0786,124.25,124.23,0.063]
[1743579909213,0.03,124.25,124.23,0.063]
[1743579916213,16.16895443,124.25,124.23,0.063]
[1743579916523,20.0,124.24,124.23,0.063]
[1743579916918,16.16895443,124.25,124.23,0.063]
[1743579917121,20.0,124.24,124.23,0.063]
[1743579917814,28.0489,124.24,124.23,0.063]
[1743579921615,8.0489,124.24,124.23,0.063]
[1743579921806,0.03,124.25,124.23,0.063]
[1743579922006,16.16895443,124.25,124.23,0.063]
[1743579922931,36.13895443,124.24,124.23,0.063]
[1743579923345,20.0,124.24,124.23,0.063]
[1743579923737,28.0489,124.24,124.23,0.063]
[1743579934534,8.0489,124.24,124.23,0.063]
[1743579934741,0.03,124.25,124.23,0.063]
[1743579934922,0.03,124.25,124.24,7.16432314]
[1743579936239,0.03,124.25,124.24,15.21322314]
[1743579937757,0.03,124.25,124.24,7.16432314]
[1743579939145,0.03,124.25,124.24,33.862872]
[1743579939321,0.03,124.3,124.25,20.28432314]
[1743579940039,0.03,124.3,124.27,0.28432314]
[1743579940242,0.03,124.3,124.29,0.28432314]
[1743579942335,0.03,124.34,124.29,38.933972]
[1743579942658,0.03,124.34,124.29,46.979572]
[1743579943244,0.03,124.34,124.32,0.28432314]
[1743579943434,0.03,124.34,124.33,7.04216157]
[1743579944163,0.03,124.34,124.33,7.18432314]
[1743579946376,0.03,124.34,124.29,7.8281]
[1743579946659,0.03,124.34,124.32,0.14216157]
[1743579947223,0.03,124.34,124.32,0.28432314]
[1743579948936,8.0724,124.34,124.32,0.28432314]
[1743579949139,8.0724,124.34,124.32,0.14216157]
[1743579949551,8.0724,124.34,124.31,6.9]
[1743579949552,25.21639502,124.33,124.31,6.9]
[1743579951133,8.0437,124.32,124.31,6.9]
[1743579951334,28.153,124.32,124.3,0.14216157]
[1743579952369,8.0437,124.32,124.3,0.14216157]
[1743579953265,8.0431,124.33,124.3,0.14216157]
[1743579953755,8.0431,124.33,124.3,0.28432314]
[1743579954250,8.0431,124.33,124.3,0.14216157]
[1743579954549,53.36719502,124.33,124.3,0.14216157]
[1743579954751,28.1508,124.33,124.3,0.14216157]
[1743579955236,28.1508,124.33,124.3,0.20516157]
[1743579957073,8.0431,124.33,124.3,0.34732314]
[1743579957445,8.0724,124.34,124.3,0.34732314]
[1743579959977,0.03,124.34,124.3,0.34732314]
[1743579960964,0.03,124.34,124.3,47.041872]
[1743579961741,0.03,124.34,124.3,0.34732314]
[1743579962147,0.03,124.34,124.32,0.28432314]
[1743579962348,0.03,124.34,124.33,7.06216157]
[1743579967551,0.03,124.34,124.33,45.853972]
[1743579968772,0.03,124.34,124.33,53.897072]
[1743579970153,0.03,124.34,124.33,45.853972]
[1743579970764,0.03,124.34,124.33,7.20432314]
[1743579971854,0.03,124.34,124.33,0.14216157]
[1743579977491,0.03,124.34,124.33,0.28432314]
[1743579979373,0.03,124.34,124.33,8.32742314]
[1743579980492,0.03,124.34,124.33,0.28432314]
[1743579981902,0.03,124.34,124.33,0.14216157]
[1743579982273,0.03,124.34,124.31,0.14216157]
[1743579982471,0.03,124.34,124.32,0.14216157]
[1743579983164,0.03,124.34,124.31,30.0]
[1743579983676,0.03,124.34,124.31,0.14216157]
[1743579983907,25.24848335,124.34,124.3,0.20516157]
[1743579984575,20.0,124.32,124.3,0.063]
[1743579984777,25.21848335,124.31,124.3,0.063]
[1743579985092,33.26288335,124.31,124.26,30.0]
[1743579985290,25.21848335,124.29,124.26,30.0]
[1743579986489,8.0463,124.28,124.26,30.0]
[1743579986877,28.1621,124.28,124.25,0.14216157]
[1743579988695,53.38058335,124.28,124.24,0.14216157]
[1743579989591,25.21848335,124.27,124.24,0.14216157]
[1743579990105,53.38058335,124.28,124.24,0.14216157]
[1743579991179,8.0476,124.26,124.23,0.063]
[1743579991386,8.0476,124.26,124.23,0.20516157]
[1743579991592,28.1667,124.26,124.23,0.20516157]
[1743579992288,25.21848335,124.25,124.23,0.063]
[1743579992489,26.81168335,124.25,124.23,0.063]
[1743579993505,8.0489,124.24,124.23,0.063]
[1743579995871,51.91703221,124.24,124.23,0.0001]
[1743579996296,43.86813221,124.23,124.22,0.0001]
[1743579996795,43.86813221,124.23,124.21,0.0001]
[1743579996994,25.21848335,124.22,124.21,0.0001]
[1743579997778,33.26868335,124.22,124.21,0.0001]
[1743579998800,51.91833221,124.22,124.21,0.0001]
[1743580001200,26.69984886,124.22,124.21,0.0001]
[1743580001382,51.91833221,124.22,124.21,0.0001]
[1743580006492,51.91833221,124.22,124.15,0.063]
[1743580006493,20.0,124.17,124.15,0.063]
[1743580006697,8.0541,124.16,124.15,0.063]
[1743580009995,88.7541,124.16,124.15,0.063]
[1743580014326,80.7,124.16,124.15,0.063]
[1743580015832,80.7,124.2,124.16,0.14216157]
[1743580015988,8.0508,124.21,124.16,38.933972]
[1743580016323,8.0508,124.21,124.16,8.06472314]
[1743580016493,125.06091839,124.21,124.16,8.06472314]
[1743580016990,125.06091839,124.21,124.16,6.55052314]
[1743580017798,134.16175892,124.21,124.16,6.55052314]
[1743580020234,25.28375892,124.2,124.16,0.28432314]
[1743580021018,25.28375892,124.18,124.15,0.063]
[1743580021200,25.28375892,124.17,124.15,0.063]
[1743580021399,105.98375892,124.16,124.12,0.063]
[1743580021702,80.7,124.16,124.12,0.20516157]
[1743580021898,8.0547,124.15,124.12,0.20516157]
[1743580022804,33.33845892,124.15,124.12,0.20516157]
[1743580023011,53.47535892,124.15,124.12,0.20516157]
[1743580023809,28.1916,124.15,124.12,0.20516157]
[1743580024203,8.0547,124.15,124.12,0.20516157]
[1743580027015,28.1916,124.15,124.12,0.20516157]
[1743580027821,53.47535892,124.15,124.12,0.063]
[1743580029612,25.28375892,124.14,124.12,0.063]
[1743580031107,8.056,124.13,124.12,0.063]
[1743580031314,28.1961,124.13,124.1,0.063]
[1743580032448,25.28375892,124.12,124.1,0.063]
[1743580032623,134.17985892,124.13,124.1,0.063]
[1743580035036,108.8961,124.13,124.1,0.063]
[1743580035423,88.756,124.13,124.1,0.063]
[1743580035733,8.056,124.13,124.1,0.063]
[1743580035914,8.0547,124.15,124.11,0.28432314]
[1743580036224,0.03,124.17,124.13,8.07142314]
[1743580036808,33.36745892,124.17,124.13,0.28432314]
[1743580037009,25.28375892,124.16,124.13,0.14216157]
[1743580037435,8.0547,124.15,124.13,0.14216157]
[1743580037642,8.0547,124.15,124.13,0.28432314]
[1743580037927,45.44735892,124.17,124.13,0.28432314]
[1743580037928,8.0544,124.16,124.13,0.28432314]
[1743580038320,0.03,124.17,124.13,0.28432314]
[1743580038521,8.0835,124.17,124.13,0.28432314]
[1743580039122,28.2171,124.17,124.13,0.28432314]
[1743580039530,20.1636,124.17,124.13,0.28432314]
[1743580041936,28.217,124.17,124.13,0.28432314]
[1743580044450,28.217,124.17,124.13,0.14216157]
[1743580044629,105.98375892,124.16,124.12,6.96]
[1743580044828,105.98375892,124.16,124.12,0.14216157]
[1743580045032,80.7,124.16,124.12,0.14216157]
[1743580045752,80.7,124.16,124.12,0.28432314]
[1743580046135,8.0547,124.15,124.12,0.28432314]
[1743580047047,8.0547,124.15,124.12,0.14216157]
[1743580047240,8.0547,124.15,124.12,6.96]
[1743580047241,28.1916,124.15,124.12,6.96]
[1743580048333,20.0,124.13,124.12,7.10216157]
[1743580048530,20.0,124.12,124.11,0.063]
[1743580050135,45.28375892,124.12,124.1,0.063]
[1743580050455,8.0573,124.11,124.1,0.063]
[1743580059757,28.1969,124.13,124.1,0.063]
[1743580062567,44.39613636,124.13,124.1,0.063]
[1743580063242,28.1969,124.13,124.1,0.063]
[1743580064842,44.39613636,124.13,124.1,0.063]
[1743580067572,16.19923636,124.12,124.1,0.063]
[1743580068160,8.0573,124.11,124.1,0.063]
[1743580070169,44.39613636,124.13,124.1,0.063]
[1743580071470,28.1969,124.13,124.1,0.063]
[1743580072971,44.39613636,124.13,124.1,0.063]
[1743580075279,28.1969,124.13,124.1,0.063]
[1743580079055,44.39613636,124.13,124.1,0.063]
[1743580080379,28.1969,124.13,124.1,0.063]
[1743580082467,28.2269,124.13,124.1,0.063]
[1743580083283,108.9269,124.13,124.1,0.063]
[1743580084892,125.12613636,124.13,124.1,0.063]
[1743580085588,16.19923636,124.12,124.1,0.063]
[1743580085791,125.12613636,124.13,124.1,0.063]
[1743580087584,108.9269,124.13,124.1,0.063]
[1743580088061,88.786,124.13,124.1,0.063]
[1743580088264,80.73,124.13,124.1,0.20516157]
[1743580088461,88.7861,124.13,124.1,0.20516157]
[1743580089159,88.7861,124.13,124.1,0.063]
[1743580089463,80.7,124.12,124.1,0.063]
[1743580089661,16.19923636,124.11,124.1,0.063]
[1743580089862,96.89923636,124.12,124.1,0.063]
[1743580091164,8.0573,124.11,124.1,0.063]
[1743580091365,28.2007,124.11,124.08,0.20516157]
[1743580092678,96.89923636,124.1,124.08,0.063]
[1743580092858,96.89923636,124.1,124.07,2.9613573]
[1743580093062,8.0593,124.08,124.07,2.9613573]
[1743580096588,88.7589,124.09,124.08,0.14216157]
[1743580097769,28.2007,124.11,124.08,0.28432314]
[1743580098177,28.2007,124.11,124.1,0.14216157]
[1743580098178,8.0573,124.11,124.1,0.14216157]
[1743580098387,8.0567,124.12,124.1,0.28432314]
[1743580099082,88.7863,124.13,124.1,0.28432314]
[1743580099592,0.03,124.13,124.1,0.28432314]
[1743580102004,28.2261,124.13,124.1,0.14216157]
[1743580103707,108.9261,124.13,124.1,0.14216157]
[1743580105606,88.786,124.13,124.1,0.28432314]
[1743580105782,80.73,124.13,124.1,0.28432314]
[1743580106097,88.7862,124.13,124.1,0.28432314]
[1743580109601,0.03,124.13,124.1,46.991772]
[1743580110887,0.03,124.17,124.14,0.28432314]
[1743580111203,0.03,124.17,124.16,0.14216157]
[1743580111590,0.03,124.17,124.16,0.28432314]
[1743580115204,0.03,124.17,124.16,18.933972]
[1743580115790,0.03,124.17,124.16,26.988072]
[1743580116119,8.0489,124.24,124.18,26.924472]
[1743580116417,8.0489,124.24,124.2,0.14216157]
[1743580116707,8.0489,124.24,124.2,0.28432314]
[1743580118801,28.1712,124.24,124.2,0.28432314]
[1743580129324,28.1712,124.24,124.16,80.9]
[1743580129325,98.43393636,124.23,124.15,20.0]
[1743580129515,80.7,124.22,124.16,7.24432314]
[1743580130020,80.7,124.22,124.18,0.14216157]
[1743580130720,80.7,124.21,124.17,0.14216157]
[1743580130901,96.89923636,124.21,124.17,0.14216157]
[1743580131308,28.1803,124.2,124.17,0.14216157]
[1743580134019,80.7,124.19,124.16,6.96]
[1743580134223,80.7,124.19,124.17,0.14216157]
[1743580135303,8.0528,124.18,124.17,0.14216157]
[1743580140401,0.03,124.22,124.17,0.28432314]
[1743580140606,0.03,124.22,124.19,18.933972]
[1743580140822,0.03,124.22,124.21,0.14216157]
[1743580141830,8.0802,124.22,124.19,0.14216157]
[1743580142020,8.0802,124.22,124.2,0.14216157]
[1743580142523,0.03,124.22,124.2,0.14216157]
[1743580143930,0.03,124.22,124.19,7.10216157]
[1743580144105,80.7,124.21,124.19,7.10216157]
[1743580144312,80.7,124.21,124.17,0.34732314]
[1743580144506,80.7,124.2,124.17,0.34732314]
[1743580145130,8.0521,124.19,124.17,0.34732314]
[1743580149519,8.0521,124.19,124.17,0.20516157]
[1743580149713,80.7,124.18,124.17,0.063]
[1743580151838,88.7528,124.18,124.17,0.063]
[1743580158127,80.7,124.18,124.17,0.063]
[1743580158331,88.7528,124.18,124.17,0.063]
[1743580160222,8.0528,124.18,124.17,0.0001]
[1743580160423,24.25203636,124.18,124.17,0.0001]
[1743580160641,8.0528,124.18,124.17,0.0001]
[1743580160835,24.25203636,124.18,124.17,0.0001]
[1743580162021,177.50168522,124.18,124.17,0.0001]
[1743580164447,158.85203636,124.18,124.17,0.0001]
[1743580164837,142.6528,124.18,124.17,0.0001]
[1743580165240,158.85203636,124.18,124.17,0.0001]
[1743580165420,158.88203636,124.18,124.17,0.0001]
[1743580166738,142.6828,124.18,124.17,0.0001]
[1743580166930,158.88203636,124.18,124.17,0.0001]
[1743580167546,142.6828,124.18,124.17,0.0001]
[1743580167940,158.88203636,124.18,124.17,0.0001]
[1743580169026,142.6828,124.18,124.17,0.0001]
[1743580171953,8.0828,124.18,124.17,0.14226157]
[1743580172444,0.03,124.18,124.17,0.28442314]
[1743580172838,8.0828,124.18,124.17,0.0001]
[1743580173032,0.03,124.18,124.17,7.08226157]
[1743580173561,0.03,124.18,124.17,7.22442314]
[1743580173948,0.03,124.18,124.17,7.08226157]
[1743580174163,20.03,124.18,124.17,0.0001]
[1743580174652,16.22923636,124.18,124.17,0.0001]
[1743580175145,24.28203636,124.18,124.17,0.0001]
[1743580175346,8.0828,124.18,124.17,0.0001]
[1743580177450,24.28203636,124.18,124.17,0.0001]
[1743580179858,28.0828,124.18,124.17,0.0001]
[1743580183540,53.37580001,124.18,124.17,0.0001]
[1743580186746,28.0828,124.18,124.17,0.0001]
[1743580187746,53.37580001,124.18,124.17,0.0001]
[1743580193181,28.0828,124.18,124.17,0.0001]
[1743580201494,53.37580001,124.18,124.17,0.0001]
[1743580201698,44.27289621,124.18,124.17,0.0001]
[1743580202073,42.92254507,124.18,124.17,0.0001]
[1743580203100,24.27289621,124.18,124.17,0.0001]
[1743580203401,42.92254507,124.18,124.17,0.0001]
[1743580206797,24.27289621,124.18,124.17,0.0001]
[1743580207397,42.92254507,124.18,124.17,0.0001]
[1743580208505,20.0,124.15,124.1,1.5634]
[1743580208793,16.19009621,124.12,124.08,0.28432314]
[1743580208971,16.19009621,124.12,124.09,30.0]
[1743580209869,16.19009621,124.13,124.09,30.0]
[1743580210559,8.0567,124.12,124.09,30.0]
[1743580211985,8.0567,124.12,124.08,30.34732314]
[1743580212199,80.7,124.11,124.08,30.34732314]
[1743580212500,80.7,124.11,124.08,0.34732314]
[1743580212803,88.7575,124.11,124.08,0.34732314]
[1743580212968,80.7,124.11,124.08,8.40642314]
[1743580213472,80.7,124.11,124.1,0.28432314]
[1743580213670,142.655,124.15,124.1,0.28432314]
[1743580213879,80.7,124.16,124.12,0.28432314]
[1743580213880,88.7544,124.16,124.12,0.28432314]
[1743580215983,108.8897,124.16,124.12,0.28432314]
[1743580216777,125.07979621,124.16,124.08,20.063]
[1743580217087,125.07979621,124.16,124.09,37.20432314]
[1743580217889,134.19275063,124.16,124.09,37.20432314]
[1743580218075,80.7,124.15,124.09,37.20432314]
[1743580218988,80.7,124.15,124.09,45.26292314]
[1743580219196,8.0554,124.14,124.09,45.26292314]
[1743580219568,8.0554,124.14,124.09,37.20432314]
[1743580220664,88.7549,124.15,124.11,0.28432314]
[1743580222903,88.7549,124.15,124.11,30.28432314]
[1743580226602,106.00305063,124.14,124.11,30.14216157]
[1743580226900,8.056,124.13,124.11,30.14216157]
[1743580228195,8.056,124.13,124.11,30.0]
[1743580228377,28.1961,124.13,124.1,0.14216157]
[1743580228577,28.1961,124.13,124.1,30.14216157]
[1743580229397,28.1961,124.13,124.1,0.14216157]
[1743580229788,80.7,124.12,124.1,0.14216157]
[1743580230001,80.7,124.11,124.1,0.14216157]
[1743580230679,80.7,124.11,124.09,0.20516157]
[1743580231587,8.058,124.1,124.09,0.20516157]
[1743580235010,80.7,124.11,124.09,0.34732314]
[1743580235381,80.7,124.11,124.09,28.40592314]
[1743580235581,80.7,124.14,124.11,20.28432314]
[1743580235894,80.7,124.14,124.13,0.14216157]
[1743580236201,8.0537,124.17,124.13,20.28432314]
[1743580236403,8.0537,124.17,124.13,0.28432314]
[1743580237103,28.1873,124.17,124.14,6.94]
[1743580239703,106.00305063,124.16,124.12,0.14216157]
[1743580239900,106.00305063,124.16,124.13,0.14216157]
[1743580240297,80.7,124.16,124.13,0.14216157]
[1743580240787,80.7,124.15,124.12,0.14216157]
[1743580241509,8.0554,124.14,124.12,0.14216157]
[1743580241713,80.7,124.13,124.12,0.14216157]
[1743580241918,80.7,124.13,124.1,0.28432314]
[1743580242206,80.7,124.13,124.1,37.22432314]
[1743580243005,8.0567,124.12,124.1,7.22432314]
[1743580247319,80.7,124.13,124.1,15.28222314]
[1743580247499,80.73,124.13,124.1,15.28222314]
[1743580248814,0.03,124.13,124.11,20.0]
[1743580249005,0.03,124.13,124.12,0.28432314]
[1743580250912,0.03,124.13,124.12,0.14216157]
[1743580251309,0.03,124.13,124.12,0.28432314]
[1743580253423,8.086,124.13,124.12,0.28432314]
[1743580256025,0.03,124.13,124.12,0.28432314]
[1743580262024,80.73,124.18,124.14,0.28432314]
[1743580262230,0.03,124.18,124.16,0.28432314]
[1743580264632,0.03,124.18,124.16,30.28432314]
[1743580266633,0.03,124.22,124.19,20.0]
[1743580266840,0.03,124.22,124.2,7.20432314]
[1743580267020,0.03,124.22,124.21,20.28432314]
[1743580267847,0.03,124.22,124.21,50.28432314]
[1743580268014,0.03,124.22,124.21,30.28432314]
[1743580270330,0.03,124.22,124.21,50.28432314]
[1743580273937,0.03,124.22,124.21,30.28432314]
[1743580274442,0.03,124.22,124.21,37.22432314]
[1743580276741,0.03,124.22,124.21,7.22432314]
[1743580276939,0.03,124.22,124.21,45.873972]
[1743580277555,0.03,124.22,124.21,53.924772]
[1743580277756,0.03,124.22,124.21,45.873972]
[1743580278859,0.03,124.22,124.21,53.924772]
[1743580279059,0.03,124.24,124.23,38.933972]
[1743580281272,0.03,124.24,124.23,20.28432314]
[1743580283171,0.03,124.24,124.23,50.28432314]
[1743580284169,0.03,124.24,124.23,68.933972]
[1743580284865,0.03,124.24,124.23,76.983472]
[1743580285753,0.03,124.26,124.25,38.933972]
[1743580285949,0.03,124.26,124.25,45.853972]
[1743580290075,0.03,124.26,124.25,53.902172]
[1743580290466,0.03,124.26,124.25,45.853972]
[1743580293981,0.03,124.26,124.25,27.20432314]
[1743580294191,0.03,124.26,124.25,7.20432314]
[1743580294683,0.03,124.26,124.25,7.18432314]
[1743580294861,0.03,124.26,124.25,0.28432314]
[1743580295177,0.03,124.28,124.26,0.28432314]
[1743580295376,0.03,124.28,124.27,20.28432314]
[1743580295578,0.03,124.29,124.28,0.28432314]
[1743580296159,16.15126566,124.36,124.33,20.28432314]
[1743580296160,0.03,124.34,124.33,20.28432314]
[1743580296461,0.03,124.34,124.33,45.973972]
[1743580297076,0.03,124.34,124.33,27.32432314]
[1743580297268,0.03,124.34,124.33,7.32432314]
[1743580298097,80.73,124.34,124.33,7.32432314]
[1743580298386,88.7724,124.34,124.33,7.32432314]
[1743580298571,90.344,124.34,124.33,7.04]
[1743580298887,90.344,124.34,124.31,0.28432314]
[1743580301291,80.7,124.33,124.31,0.28432314]
[1743580302492,80.7,124.33,124.31,8.32842314]
[1743580303168,80.7,124.33,124.32,20.28432314]
[1743580304897,0.03,124.34,124.33,0.28432314]
[1743580309487,0.03,124.34,124.3,20.0]
[1743580309690,80.73,124.34,124.31,7.32432314]
[1743580309887,80.73,124.34,124.31,0.28432314]
[1743580310093,80.73,124.34,124.31,7.32432314]
[1743580311692,88.7725,124.34,124.31,7.32432314]
[1743580315471,80.73,124.34,124.31,7.32432314]
[1743580316591,80.73,124.34,124.31,15.36862314]
[1743580316787,80.73,124.34,124.33,0.28432314]
[1743580317383,0.03,124.34,124.33,0.28432314]
[1743580317699,0.03,124.35,124.34,38.933972]
[1743580318781,0.03,124.35,124.34,0.28432314]
[1743580321698,0.03,124.35,124.34,0.14216157]
[1743580321915,1.6877,124.35,124.34,0.14216157]
[1743580322083,80.7,124.34,124.32,0.14216157]
[1743580322397,80.7,124.34,124.31,0.14216157]
[1743580322398,8.0437,124.32,124.31,0.14216157]
[1743580322607,88.7434,124.33,124.31,0.28432314]
[1743580323895,80.7,124.33,124.31,20.28432314]
[1743580324712,88.7431,124.33,124.31,20.28432314]
[1743580325509,88.7431,124.33,124.32,7.24216157]
[1743580325890,80.7,124.33,124.32,7.24216157]
[1743580326106,80.7,124.33,124.32,7.38432314]
[1743580327012,0.03,124.35,124.33,0.28432314]
[1743580327399,0.03,124.35,124.34,20.28432314]
[1743580328293,0.03,124.35,124.34,0.28432314]
[1743580329211,8.0718,124.35,124.34,0.28432314]
[1743580330217,0.03,124.35,124.34,0.28432314]
[1743580330412,0.03,124.35,124.34,20.28432314]
[1743580330621,0.03,124.35,124.34,28.32672314]
[1743580331317,0.03,124.35,124.34,28.38972314]
[1743580332013,0.03,124.35,124.34,20.34732314]
[1743580332517,0.03,124.35,124.34,0.34732314]
[1743580332720,0.03,124.35,124.34,7.44732314]
[1743580333327,8.0718,124.35,124.34,7.44732314]
[1743580333534,8.0718,124.35,124.34,0.34732314]
[1743580333719,9.6416,124.35,124.34,0.20516157]
[1743580337231,0.03,124.35,124.34,0.20516157]
[1743580337423,0.03,124.35,124.34,7.44732314]
[1743580343405,0.03,124.35,124.34,0.20516157]
[1743580344711,0.03,124.35,124.34,0.34732314]
[1743580348528,0.03,124.35,124.34,20.34732314]
[1743580354434,0.03,124.35,124.34,47.039372]
[1743580354627,80.73,124.37,124.36,20.28432314]
[1743580354820,0.03,124.37,124.36,20.28432314]
[1743580355717,0.03,124.37,124.36,28.32542314]
[1743580356136,0.03,124.37,124.36,20.28432314]
[1743580356841,0.03,124.37,124.36,0.28432314]
[1743580358140,0.03,124.37,124.36,20.28432314]
[1743580363324,0.03,124.37,124.36,7.32432314]
[1743580365029,8.0705,124.37,124.36,7.32432314]
[1743580368145,0.03,124.37,124.36,7.32432314]
[1743580373054,0.03,124.37,124.36,35.36542314]
[1743580374455,0.03,124.37,124.36,54.015072]
[1743580380643,0.03,124.37,124.36,45.973972]
[1743580380844,0.03,124.37,124.36,54.015072]
[1743580383767,0.03,124.37,124.36,45.973972]
[1743580384057,0.03,124.37,124.36,20.28432314]
[1743580384253,0.03,124.37,124.36,27.28432314]
[1743580384441,0.03,124.37,124.36,35.32542314]
[1743580384945,0.03,124.37,124.36,27.28432314]
[1743580386771,0.03,124.37,124.36,35.32542314]
[1743580387264,0.03,124.37,124.36,27.28432314]
[1743580387458,0.03,124.37,124.36,35.32542314]
[1743580390959,0.03,124.37,124.36,53.975072]
[1743580391787,0.03,124.37,124.36,266.075072]
[1743580393758,0.03,124.37,124.36,296.075072]
[1743580396774,0.03,124.37,124.36,269.36432314]
[1743580397082,0.03,124.37,124.36,277.40542314]
[1743580398571,0.03,124.37,124.36,296.055072]
[1743580398770,0.03,124.37,124.36,296.555072]
[1743580398967,0.03,124.38,124.37,0.28432314]
[1743580399159,0.03,124.38,124.37,30.28432314]
[1743580399964,0.03,124.38,124.37,38.32482314]
[1743580403479,0.03,124.5,124.47,20.28432314]
[1743580403682,12.51400301,124.53,124.52,20.28432314]
[1743580403885,12.51400301,124.54,124.53,18.933972]
[1743580404198,12.51400301,124.54,124.53,7.42432314]
[1743580404483,93.21400301,124.54,124.53,7.42432314]
[1743580404661,101.24350301,124.54,124.53,7.42432314]
[1743580404856,36.65705945,124.54,124.53,7.28216157]
[1743580405289,20.54350301,124.54,124.53,7.28216157]
[1743580405873,20.54350301,124.54,124.53,7.42432314]
[1743580406073,12.51400301,124.54,124.53,7.42432314]
[1743580406269,6.3736,124.55,124.54,0.14216157]